Workbook

Sheet 一般公共预算收支预算调整表
A1: 附件1：
A2: 阎良区2023年一般公共预算收支预算调整表（草案）
H3: 单位：万元
A4: 收 入 | E4: 支 出
A5: 项 目 | B5: 年度预算 | C5: 增减 （+，-） | D5: 调整预算 | E5: 项 目 | F5: 年度预算 | G5: 增减 （+，-） | H5: 调整预算
A6: 一、区级收入 | B6: 82,200 | C6: 37,656 | D6: 119,856 | E6: 一、区级支出 | F6: 203,202 | G6: 83,793 | H6: =286995 -> 286,995
A7: 二、上级补助收入 | B7: =51712+13636+5210 -> 70,558 | C7: 83,120 | D7: 153,678 | E7: 二、上解上级支出 | F7: 47,618 | G7: -39,118 | H7: =F7+G7 -> 8,500
A8: 三、债务收入 | B8: =SUM(B10) -> 0 | C8: =C9+C10 -> 18,047 | D8: =D9+D10 -> 18,047 | E8: 三、调出资金 | H8: =F8+G8 -> 0
A9: 转贷新增一般债券收入 | C9: 7,000 | D9: 7,000 | E9: 四、债务还本支出 | G9: =SUM(G10) -> 11,047 | H9: =F9+G9 -> 11,047
A10: 转贷再融资一般债券收入 | C10: 11,047 | D10: =B10+C10 -> 11,047 | E10: 地方政府一般性债务还本支出 | G10: 11,047 | H10: =F10+G10 -> 11,047
A11: 四、上年结转 | B11: 2,841 | C11: 901 | D11: =B11+C11 -> 3,742 | E11: 五、年终结余 | G11: 8,146 | H11: 8,146
A12: 五、调入资金 | B12: 64,859 | C12: -45,494 | D12: 19,365 | E12: 结转下年支出 | G12: 8,146 | H12: 8,146
A13: 六、动用预算稳定调节基金 | B13: 30,362 | C13: -30,362 | D13: =B13+C13 -> 0
A14: 总计 | B14: =SUM(B6:B8,B11:B13) -> 250,820 | C14: =SUM(C6:C8,C11:C13) -> 63,868 | D14: =SUM(D6:D8,D11:D13) -> 314,688 | E14: 总计 | F14: =SUM(F6:F9) -> 250,820 | G14: =SUM(G6:G9,G11) -> 63,868 | H14: =SUM(H6:H9,H11) -> 314,688

Sheet 政府性基金预算收支预算调整表
A1: 附件2：
A2: 阎良区2023年政府性基金预算收支预算调整表（草案）
H3: 单位：万元
A4: 收 入 | E4: 支 出
A5: 项 目 | B5: 年度预算 | C5: 增减 （+，-） | D5: 调整预算 | E5: 项 目 | F5: 年度预算 | G5: 增减 （+，-） | H5: 调整预算
A6: 一、区级收入 | B6: 80,240 | C6: -22,366 | D6: 57,874 | E6: 一、区级支出 | F6: 29,207 | G6: 93,626 | H6: 122,833
A7: 二、上级补助收入 | B7: 996 | C7: 10,844 | D7: 11,840 | E7: 二、上解上级支出 | G7: 200 | H7: =SUM(F7:G7) -> 200
A8: 三、债务收入 | C8: =53500+30000 -> 83,500 | D8: =B8+C8 -> 83,500 | E8: 三、调出资金 | F8: 59,859 | G8: -51,175 | H8: 8,684
A9: 专项债券收入 | C9: 53,500 | D9: =B9+C9 -> 53,500 | E9: 四、债务还本支出 | G9: 30,000 | H9: 30,000
A10: 四、上年结转 | B10: 7,830 | C10: 673 | D10: =B10+C10 -> 8,503 | E10: 地方政府一般性债务还本支出 | G10: 30,000 | H10: 30,000
A11: 五、调入资金 | D11: =B11+C11 -> 0 | E11: 五、年终结余 | H11: 0
A12: 总计 | B12: =SUM(B6:B8,B10:B11) -> 89,066 | C12: =SUM(C6:C8,C10:C11) -> 72,651 | D12: =SUM(D6:D8,D10:D11) -> 161,717 | E12: 总计 | F12: =SUM(F6:F9) -> 89,066 | G12: =SUM(G6:G9,G11) -> 72,651 | H12: =SUM(H6:H9,H11) -> 161,717

Sheet 国有资本经营预算收支预算调整表
A1: 附件3：
A2: 阎良区2023年国有资本经营预算收支预算调整表（草案）
H3: 单位：万元
A4: 收 入 | E4: 支 出
A5: 项 目 | B5: 年度预算 | C5: 增减 （+，-） | D5: 调整预算 | E5: 项 目 | F5: 年度预算 | G5: 增减 （+，-） | H5: 调整预算
A6: 一、区级收入 | B6: 5,000 | C6: 5,000 | D6: =B6+C6 -> 10,000 | E6: 一、区级支出 | F6: 1,819 | G6: -1,233 | H6: 586
A7: 二、上级补助收入 | B7: 552 | C7: 10 | D7: 562 | E7: 二、上解上级支出 | H7: =SUM(F7:G7) -> 0
A8: 三、上年结转 | B8: 1,267 | D8: 1,267 | E8: 三、调出资金 | F8: 5,000 | G8: 5,681 | H8: 10,681
D9: 0 | E9: 四、年终结余 | G9: 562 | H9: 562
E10: 结转下年支出 | G10: 562 | H10: 562
A11: 总计 | B11: =SUM(B6:B7,B8:B9) -> 6,819 | C11: =SUM(C6:C7,C8:C9) -> 5,010 | D11: =SUM(D6:D7,D8:D9) -> 11,829 | E11: 总计 | F11: =SUM(F6:F9) -> 6,819 | G11: 5,010 | H11: 11,829

Sheet 债务情况表
A1: 附件4:
A2: 阎良区2023年债务情况表（草案）
F3: 单位：万元
A4: 项目 | B4: 2023年年初债务余额 | C4: 2023年新增债务 | D4: 2023年消化债务 | E4: 2023年10月底债务余额 | F4: 2022年底债务限额
A5: 一般债务 | B5: 92,791 | C5: 18,047 | D5: 11,047 | E5: =B5+C5-D5 -> 99,791 | F5: 128,974
A6: 专项债务 | B6: 152,200 | C6: 83,500 | D6: 30,000 | E6: =B6+C6-D6 -> 205,700 | F6: 155,300
A7: 总计 | B7: =SUM(B5:B6) -> 244,991 | C7: =SUM(C5:C6) -> 101,547 | D7: =SUM(D5:D6) -> 41,047 | E7: =SUM(E5:E6) -> 305,491 | F7: =SUM(F5:F6) -> 284,274

Sheet 一般债券
A1: 附件5：
A2: 阎良区2023年新增地方政府一般债券安排表（草案）
F3: 单位：万元
A4: 序号 | B4: 项目单位 | C4: 项目名称 | D4: 新增债券额度 | E4: 功能分类 | F4: 经济分类
A5: 1 | B5: 阎良区住建局 | C5: 阎良区西飞大道（试飞院路-人民中路）道路提升改造项目 | D5: 600 | E5: 2120399 其他城乡社区公共设施支出 | F5: 50302 基础设施建设
A6: 2 | B6: 阎良区住建局 | C6: 阎良区润天大道与咸铜侯西铁路立交桥建设项目 | D6: 950 | E6: 2120399 其他城乡社区公共设施支出 | F6: 50302 基础设施建设
A7: 3 | B7: 阎良区住建局 | C7: 阎良区年丰路下穿通道提升改造项目 | D7: 650 | E7: 2120399 其他城乡社区公共设施支出 | F7: 50302 基础设施建设
A8: 4 | B8: 阎良区住建局 | C8: 阎良区西沃北路道路提升改造项目 | D8: 1,050 | E8: 2120399 其他城乡社区公共设施支出 | F8: 50302 基础设施建设
A9: 5 | B9: 经济开发区管委会 | C9: 阎良区经发路、发展路道路接通项目 | D9: 950 | E9: 2120399 其他城乡社区公共设施支出 | F9: 50302 基础设施建设
A10: 6 | B10: 阎良区荆山开发区管理委员会 | C10: 富阎新区阎良产业带航博大道提升改造项目 | D10: 930 | E10: 2120501 城乡社区环境卫生 | F10: 50601 资本性支出（一）
A11: 7 | B11: 阎良区荆山开发区管理委员会 | C11: 富阎新区阎良产业带基础设施配套道路项目一期 | D11: 930 | E11: 2120399 其他城乡社区公共设施支出 | F11: 50601 资本性支出（一）
A12: 8 | B12: 阎良区水务局 | C12: 二龙口水库维修养护 | D12: 10 | E12: 2130319 江河湖库水系综合整治 | F12: 50302 基础设施建设
A13: 9 | B13: 阎良区住建局 | C13: 阎良区试飞院路道路提升改造项目 | D13: 930 | E13: 2120501 城乡社区环境卫生 | F13: 50302 基础设施建设
A14: 总计 | D14: =SUM(D5:D13) -> 7,000

Sheet 专项债券
A1: 附件6：
A2: 阎良区2023年新增地方政府专项债券安排表（草案）
G3: 单位：万元
A4: 序号 | B4: 债券类型 | C4: 项目单位 | D4: 项目名称 | E4: 新增债券额度 | F4: 功能分类 | G4: 经济分类
A5: 1 | B5: 保障性安居工程 | C5: 阎良区住建局 | D5: 阎良区保障性租赁住房项目一期 | E5: 9,000 | F5: 2290402 其他地方自行试点项目收益专项债券收入安排的支出 | G5: 50402 基础设施建设
A6: 2 | B6: 保障性安居工程 | C6: 阎良区住建局 | D6: 阎良区保障性租赁住房项目二期 | E6: 6,000 | F6: 2290402 其他地方自行试点项目收益专项债券收入安排的支出 | G6: 50402 基础设施建设
A7: 3 | B7: 保障性安居工程 | C7: 经济开发区管委会 | D7: 阎良区新型工业园区保障性租赁住房项目 | E7: 10,000 | F7: 2290402 其他地方自行试点项目收益专项债券收入安排的支出 | G7: 50601 资本性支出（一）
A8: 4 | B8: 产业园区基础设施 | C8: 阎良区航城融创园区建设管理有限责任公司 | D8: 阎良区航空供应链基础配套项目——部件装配集成交付中心 | E8: 28,500 | F8: 2290402 其他地方自行试点项目收益专项债券收入安排的支出 | G8: 59999 其他支出
A9: 总计 | E9: =SUM(E5:E8) -> 53,500
